bitfinex/quotes_BTCUSD_20230404
["timestamp","ask_amount","ask_price","bid_price","bid_amount"]
[1680619287095,1.02644115,28194.0,28193.0,0.0231]
[1680619287819,1.32644115,28194.0,28193.0,0.0231]
[1680619288046,0.96429829,28194.0,28193.0,0.0231]
[1680619288271,0.93729829,28194.0,28193.0,0.0231]
[1680619288506,0.96429829,28194.0,28193.0,0.0231]
[1680619288953,0.96429829,28194.0,28193.0,0.01429063]
[1680619289697,0.93729829,28194.0,28193.0,0.01429063]
[1680619289925,0.96429829,28194.0,28193.0,0.01429063]
[1680619290652,0.96429829,28194.0,28193.0,0.00559289]
[1680619290653,0.93729829,28194.0,28193.0,0.00559289]
[1680619290881,0.946551,28194.0,28193.0,0.00559289]
[1680619291103,0.919551,28194.0,28193.0,0.00559289]
[1680619291341,1.146551,28194.0,28193.0,0.00559289]
[1680619291567,1.316831,28194.0,28193.0,0.00559289]
[1680619292273,1.289831,28194.0,28193.0,0.00559289]
[1680619292732,1.316831,28194.0,28193.0,0.00559289]
[1680619293200,1.289831,28194.0,28193.0,0.00559289]
[1680619293426,1.146551,28194.0,28193.0,0.00559289]
[1680619293650,1.1835041,28194.0,28193.0,0.00559289]
[1680619294590,1.00125139,28194.0,28193.0,0.00559289]
[1680619294817,1.201092,28194.0,28193.0,0.00559289]
[1680619295043,1.598792,28194.0,28193.0,0.00559289]
[1680619295271,1.769072,28194.0,28182.0,0.014181]
[1680619295495,1.769072,28194.0,28182.0,0.15625781]
[1680619295496,0.374,28185.0,28182.0,0.15625781]
[1680619295726,0.1714779,28184.0,28182.0,0.014361]
[1680619295970,0.051686,28183.0,28182.0,0.014361]
[1680619296192,0.057363,28183.0,28182.0,0.014361]
[1680619296630,0.057363,28183.0,28182.0,0.26141869]
[1680619296891,0.084363,28183.0,28182.0,0.26141869]
[1680619297536,0.084363,28183.0,28182.0,0.02563647]
[1680619297756,0.084363,28183.0,28182.0,0.20371386]
[1680619297978,0.075863,28183.0,28182.0,0.20371386]
[1680619298204,0.032677,28183.0,28182.0,0.20371386]
[1680619298649,0.078039,28183.0,28182.0,0.20371386]
[1680619299601,0.078039,28183.0,28182.0,0.02563647]
[1680619299602,0.49321267,28183.0,28182.0,0.02563647]
[1680619299850,0.50171267,28183.0,28182.0,0.02563647]
[1680619300731,0.086539,28183.0,28182.0,0.24104824]
[1680619300952,0.078039,28183.0,28182.0,0.24104824]
[1680619301173,0.032677,28183.0,28182.0,0.24104824]
[1680619301392,0.075057,28183.0,28182.0,0.24104824]
[1680619302720,0.076422,28183.0,28182.0,0.24104824]
[1680619303603,0.076422,28183.0,28182.0,0.02563647]
[1680619304292,0.47817818,28183.0,28182.0,0.02563647]
[1680619304525,0.48667818,28183.0,28182.0,0.02563647]
[1680619305658,0.48656425,28183.0,28182.0,0.02545647]
[1680619307891,0.08480807,28183.0,28182.0,0.02545647]
[1680619308981,0.48505554,28183.0,28182.0,0.02545647]
[1680619309193,0.78505554,28183.0,28182.0,0.02545647]
[1680619309926,0.78505554,28183.0,28182.0,0.01127547]
[1680619310365,0.78526554,28183.0,28182.0,0.01127547]
[1680619311914,0.07651807,28183.0,28182.0,0.01127547]
[1680619312159,0.00907267,28184.0,28182.0,0.35919847]
[1680619312398,0.022702,28191.0,28183.0,0.35752681]
[1680619312399,0.005675,28191.0,28183.0,0.35752681]
[1680619312632,0.005675,28190.0,28187.0,0.1344]
[1680619312884,0.005675,28190.0,28188.0,0.15750881]
[1680619313134,0.005675,28190.0,28188.0,0.14189681]
[1680619313381,0.36306037,28193.0,28189.0,0.15829581]
[1680619313382,0.01165,28193.0,28189.0,0.15829581]
[1680619313631,0.005675,28193.0,28192.0,0.1344]
[1680619314512,0.013675,28193.0,28192.0,0.1344]
[1680619315244,0.47024926,28193.0,28190.0,0.3048]
[1680619315463,0.47024926,28193.0,28190.0,0.13446]
[1680619315464,0.46224926,28193.0,28190.0,0.13446]
[1680619315685,0.46224926,28193.0,28192.0,0.002]
[1680619315686,0.47124926,28193.0,28192.0,0.002]
[1680619315910,0.40328678,28193.0,28192.0,0.002]
[1680619316129,0.40358678,28193.0,28192.0,0.002]
[1680619316358,0.014975,28193.0,28192.0,0.002]
[1680619316585,0.014675,28193.0,28192.0,0.002]
[1680619317032,0.01456049,28193.0,28192.0,0.002]
[1680619317247,0.01456049,28193.0,28192.0,0.2544039]
[1680619317495,0.01456049,28193.0,28192.0,0.2544639]
[1680619318134,0.01456049,28193.0,28192.0,0.00206]
[1680619318359,0.01456049,28193.0,28192.0,0.002]
[1680619318360,0.41463237,28193.0,28192.0,0.002]
[1680619318584,0.45676337,28193.0,28192.0,0.002]
[1680619318844,0.45395439,28193.0,28192.0,0.002]
[1680619319089,0.91653149,28193.0,28192.0,0.002]
[1680619319329,0.91653149,28193.0,28186.0,0.64666952]
[1680619319330,0.90753149,28193.0,28187.0,0.00018]
[1680619319562,1.0125909,28192.0,28186.0,0.51478]
[1680619319791,0.138718,28191.0,28186.0,0.5146]
[1680619320013,0.050423,28190.0,28186.0,0.5146]
[1680619320237,0.061603,28189.0,28186.0,0.5146]
[1680619320481,0.005676,28189.0,28186.0,0.5146]
[1680619320715,0.027,28193.0,28187.0,0.52765581]
[1680619320952,0.027,28193.0,28192.0,0.40189468]
[1680619321170,0.005675,28193.0,28192.0,0.40189468]
[1680619321625,0.005974,28196.0,28192.0,0.150032]
[1680619321856,0.73930131,28198.0,28193.0,0.14189681]
[1680619322084,0.006,28193.0,28192.0,0.43487953]
[1680619322307,0.005674,28197.0,28192.0,0.19066747]
[1680619322531,0.45405027,28198.0,28192.0,0.75373066]
[1680619322796,0.45405027,28198.0,28193.0,0.31205681]
[1680619322797,0.44837627,28198.0,28193.0,0.31205681]
[1680619323018,0.47305027,28198.0,28194.0,0.016363]
[1680619323238,0.47305027,28198.0,28194.0,0.15825981]
[1680619323466,0.47305027,28198.0,28193.0,0.17034]
[1680619323690,0.47275027,28198.0,28194.0,0.015673]
[1680619323910,0.45375027,28198.0,28194.0,0.29717501]
[1680619324159,0.46605027,28198.0,28194.0,0.29717501]
[1680619324827,0.48505027,28198.0,28194.0,0.29717501]
[1680619325059,0.45405027,28198.0,28194.0,0.29717501]
[1680619325305,0.48005027,28198.0,28194.0,0.41661726]
[1680619325533,0.48005027,28198.0,28194.0,0.29717501]
[1680619326100,0.43642774,28197.0,28194.0,0.29723501]
[1680619326325,0.017023,28196.0,28194.0,0.29735501]
[1680619327438,0.043023,28196.0,28194.0,0.29735501]
[1680619327861,0.04291156,28196.0,28194.0,0.00018]
[1680619328035,0.043721,28195.0,28192.0,0.68117335]
[1680619328205,0.039722,28194.0,28192.0,0.68117335]
[1680619328812,0.039722,28194.0,28192.0,0.55278]
[1680619329256,0.37472335,28194.0,28192.0,0.55278]
[1680619329472,0.37472335,28194.0,28192.0,0.00018]
[1680619329691,0.37900832,28193.0,28191.0,0.32441058]
[1680619329906,0.017025,28192.0,28191.0,0.32441058]
[1680619330840,0.017025,28192.0,28191.0,0.00118]
[1680619331058,0.023025,28192.0,28191.0,0.28515076]
[1680619331285,0.023025,28192.0,28191.0,0.25324653]
[1680619331496,0.023025,28192.0,28191.0,0.24654194]
[1680619331715,0.023025,28192.0,28191.0,0.26293594]
[1680619333406,0.023025,28192.0,28191.0,0.24654194]
[1680619333623,0.023025,28192.0,28191.0,0.00118]
[1680619333852,0.023025,28192.0,28191.0,0.001]
[1680619334086,0.6685839,28192.0,28191.0,0.001]
[1680619334316,0.891491,28192.0,28191.0,0.001]
[1680619334764,1.185491,28192.0,28183.0,0.1756643]
[1680619334989,0.5083,28187.0,28183.0,0.1756643]
[1680619335215,0.039736,28185.0,28183.0,0.1756643]
[1680619335436,0.051719,28184.0,28183.0,0.1756643]
[1680619335715,0.057395,28184.0,28183.0,0.1756643]
[1680619336604,0.085047,28184.0,28183.0,0.00018]
[1680619336826,0.49409719,28184.0,28181.0,0.0231]
[1680619337057,0.042711,28183.0,28181.0,0.02328]
[1680619337281,0.45022619,28184.0,28181.0,0.02328]
[1680619337282,0.017031,28182.0,28181.0,0.02328]
[1680619337496,0.017031,28182.0,28181.0,0.23900437]
[1680619338419,0.042031,28182.0,28181.0,0.23900437]
[1680619338635,0.030677,28182.0,28181.0,0.02328]
[1680619338851,0.03056702,28182.0,28181.0,0.0231]
[1680619339295,0.03056702,28182.0,28181.0,0.26217667]
[1680619340851,0.03056702,28182.0,28181.0,0.02316]
[1680619341068,0.38066453,28182.0,28181.0,0.0231]
[1680619341514,0.42358853,28182.0,28181.0,0.0231]
[1680619344604,0.45859433,28182.0,28181.0,0.0231]
[1680619344859,0.07349102,28182.0,28181.0,0.0231]
[1680619345075,0.07319102,28182.0,28181.0,0.0231]
[1680619345277,0.43830928,28182.0,28181.0,0.0231]
[1680619345490,0.43742128,28182.0,28181.0,0.0231]
[1680619348834,0.39598528,28182.0,28181.0,0.0231]
[1680619349042,0.44163728,28182.0,28181.0,0.0231]
[1680619349479,0.4412113,28182.0,28181.0,0.0231]
[1680619350036,0.07609304,28182.0,28181.0,0.0231]
[1680619350260,0.07429004,28182.0,28181.0,0.0231]
[1680619351344,0.07162004,28182.0,28181.0,0.0231]
[1680619351750,0.03044104,28182.0,28181.0,0.0231]
[1680619353019,0.49810274,28182.0,28181.0,0.0231]
[1680619353238,0.62472174,28182.0,28181.0,0.0231]
[1680619354513,0.62472174,28182.0,28181.0,0.03378205]
[1680619356221,0.60423659,28182.0,28181.0,0.03378205]
[1680619356428,0.60991359,28182.0,28181.0,0.03378205]
[1680619358147,0.01563289,28182.0,28181.0,0.03378205]
[1680619358575,0.05991389,28182.0,28181.0,0.03378205]
[1680619358804,0.01563289,28182.0,28181.0,0.03378205]
[1680619359457,0.05731689,28182.0,28181.0,0.03378205]
[1680619360093,0.01563289,28182.0,28181.0,0.03378205]
[1680619360534,0.05889189,28182.0,28181.0,0.03378205]
[1680619360952,0.44517838,28182.0,28181.0,0.03378205]
[1680619362304,0.05889189,28182.0,28181.0,0.03378205]
[1680619362519,0.01516113,28182.0,28181.0,0.03378205]
[1680619362733,0.05991613,28182.0,28181.0,0.03378205]
[1680619366168,0.01516113,28182.0,28181.0,0.03378205]
[1680619366409,0.42396081,28182.0,28179.0,0.6581045]
[1680619366631,0.42291081,28182.0,28181.0,0.01052442]
[1680619367058,0.01546113,28182.0,28181.0,0.01052442]
[1680619367277,0.01516113,28182.0,28181.0,0.01052442]
[1680619367492,0.01516113,28182.0,28180.0,0.11307395]
[1680619367773,0.01516113,28182.0,28180.0,0.18749473]
[1680619368216,0.01516113,28182.0,28181.0,0.21854684]
[1680619368650,0.005677,28182.0,28181.0,0.21854684]
[1680619368872,0.022677,28182.0,28181.0,0.21854684]
[1680619369281,0.005677,28182.0,28181.0,0.21854684]
[1680619369507,0.027677,28182.0,28181.0,0.21954684]
[1680619378172,0.027677,28182.0,28181.0,0.001]
[1680619378380,0.49776053,28182.0,28181.0,0.001]
[1680619379016,0.49785053,28182.0,28179.0,0.0926906]
[1680619379228,0.48186003,28181.0,28179.0,0.0926906]
[1680619379443,0.48186003,28181.0,28179.0,0.17632742]
[1680619379444,0.017032,28180.0,28179.0,0.17632742]
[1680619379862,0.017032,28180.0,28179.0,0.17732742]
[1680619380945,0.017032,28180.0,28179.0,0.17632742]
[1680619381170,0.37020907,28180.0,28179.0,0.08463682]
[1680619381390,0.119832,28180.0,28179.0,0.001]
[1680619381612,0.162274,28180.0,28174.0,0.31975426]
[1680619381873,0.1726629,28179.0,28174.0,0.47896226]
[1680619382105,0.017034,28178.0,28175.0,0.12713425]
[1680619382340,0.017334,28178.0,28175.0,0.12713425]
[1680619382555,0.011656,28178.0,28175.0,0.12713425]
[1680619382765,0.017035,28176.0,28175.0,0.12713425]
[1680619383010,0.005678,28176.0,28175.0,0.12713425]
[1680619384019,0.005678,28176.0,28175.0,0.23143389]
[1680619384233,0.005678,28176.0,28175.0,0.13439964]
[1680619384451,0.028678,28176.0,28175.0,0.13439964]
[1680619384658,0.028678,28176.0,28175.0,0.26153389]
[1680619384874,0.028678,28176.0,28175.0,0.13439964]
[1680619389515,0.023,28176.0,28175.0,0.15618714]
[1680619389734,0.023,28176.0,28175.0,0.17247714]
[1680619389735,0.028678,28176.0,28175.0,0.17247714]
[1680619389946,0.028678,28176.0,28175.0,0.29961139]
[1680619390165,0.023,28176.0,28175.0,0.29961139]
[1680619390386,0.028678,28176.0,28175.0,0.29961139]
[1680619390602,0.02751111,28176.0,28175.0,0.29499033]
[1680619390847,0.02751111,28176.0,28175.0,0.29505033]
[1680619391061,0.02751111,28176.0,28175.0,0.29517033]
[1680619391276,0.02183311,28176.0,28175.0,0.24143785]
[1680619391490,0.02065943,28176.0,28175.0,0.35516519]
[1680619391697,0.02065943,28176.0,28175.0,0.4880093]
[1680619391920,0.02633743,28176.0,28175.0,0.4880093]
[1680619392154,0.02633743,28176.0,28175.0,0.57241122]
[1680619392391,0.02633743,28176.0,28175.0,0.25901497]
[1680619392599,0.00451084,28176.0,28175.0,0.38614922]
[1680619392809,0.00451084,28176.0,28175.0,0.26901497]
[1680619392810,0.00551084,28176.0,28175.0,0.26901497]
[1680619393026,0.00451084,28176.0,28175.0,0.25901497]
[1680619393240,0.00451084,28176.0,28175.0,0.28025797]
[1680619393490,0.005678,28177.0,28175.0,0.4760273]
[1680619393707,0.005678,28177.0,28176.0,0.25468318]
[1680619394137,0.005678,28177.0,28176.0,0.015929]
[1680619394350,0.005678,28177.0,28175.0,0.39015048]
[1680619394559,0.005678,28177.0,28176.0,0.0104391]
[1680619395203,0.38520979,28177.0,28176.0,0.0104391]
[1680619395469,0.42760679,28177.0,28176.0,0.0104391]
[1680619395894,0.43060679,28177.0,28176.0,0.0104391]
[1680619396109,0.42730679,28177.0,28176.0,0.01013407]
[1680619396792,0.014978,28177.0,28176.0,0.01113407]
[1680619397009,0.005678,28177.0,28176.0,0.01013407]
[1680619397262,0.021678,28177.0,28176.0,0.01113407]
[1680619397482,0.048373,28177.0,28176.0,0.01013407]
[1680619397706,0.53386573,28177.0,28176.0,0.01113407]
[1680619398351,0.52536573,28177.0,28176.0,0.01113407]
[1680619398598,0.52566573,28177.0,28176.0,0.01113407]
[1680619398815,0.50266573,28177.0,28176.0,0.01013407]
[1680619399036,0.52566573,28177.0,28176.0,0.01113407]
[1680619399973,0.48297073,28177.0,28173.0,0.03049242]
[1680619400192,0.005678,28175.0,28174.0,0.05304439]
[1680619400635,0.005678,28175.0,28174.0,0.06572671]
[1680619401298,0.005678,28175.0,28174.0,0.01268232]
[1680619401735,0.014678,28175.0,28174.0,0.01368232]
[1680619402634,0.01353611,28175.0,28174.0,0.01368232]
[1680619403301,0.01353611,28175.0,28174.0,0.06102258]
[1680619404002,0.01353611,28175.0,28174.0,0.07462258]
[1680619404647,0.014678,28175.0,28174.0,0.07462258]
[1680619405645,0.01349665,28175.0,28174.0,0.07462258]
[1680619406602,0.01231183,28175.0,28174.0,0.07462258]
[1680619408350,0.01231183,28175.0,28174.0,0.02728232]
[1680619408584,0.01231183,28175.0,28174.0,0.01368232]
[1680619408585,0.51166109,28175.0,28174.0,0.01368232]
[1680619410407,0.51172109,28175.0,28174.0,0.01368232]
[1680619410642,0.14775383,28175.0,28174.0,0.01368232]
[1680619410867,0.47726769,28175.0,28174.0,0.01368232]
[1680619411566,0.47063386,28175.0,28174.0,0.01268232]
[1680619411801,0.48563386,28175.0,28174.0,0.01268232]
[1680619412026,0.14112,28175.0,28174.0,0.01268232]
[1680619412251,0.16812,28175.0,28174.0,0.01268232]
[1680619412479,0.36812,28175.0,28174.0,0.01268232]
[1680619412692,0.36812,28175.0,28168.0,0.0546178]
[1680619412693,0.66812,28175.0,28168.0,0.0546178]
[1680619412998,0.084,28172.0,28168.0,0.0546178]
[1680619413214,0.082716,28171.0,28168.0,0.0546178]
[1680619413655,0.04315,28170.0,28168.0,0.2249578]
[1680619413875,0.01704,28169.0,28168.0,0.0546178]
[1680619414093,0.059672,28169.0,28168.0,0.0546178]
[1680619414336,0.01704,28169.0,28168.0,0.2249578]
[1680619414552,0.01704,28169.0,28168.0,0.0546178]
[1680619414998,0.01704,28169.0,28168.0,0.2249578]
[1680619414999,0.04404,28169.0,28168.0,0.2249578]
[1680619415213,0.04404,28169.0,28167.0,0.17052]
[1680619415455,0.04404,28169.0,28167.0,0.05151929]
[1680619415688,0.04404,28169.0,28168.0,0.17034]
[1680619416333,0.01704,28169.0,28168.0,0.17034]
[1680619416551,0.03904,28169.0,28168.0,0.17034]
[1680619417206,0.01704,28169.0,28168.0,0.17034]
[1680619417424,0.04404,28169.0,28168.0,0.17034]
[1680619418306,0.04404,28169.0,28168.0,0.23724429]
[1680619418517,0.04404,28169.0,28168.0,0.23730429]
[1680619418728,0.04404,28169.0,28168.0,0.06696429]
[1680619418968,0.027,28169.0,28168.0,0.06690429]
[1680619419500,0.027,28169.0,28168.0,0.06094799]
[1680619419847,0.027,28169.0,28168.0,0.24764199]
[1680619420064,0.027,28169.0,28168.0,0.24782199]
[1680619420719,0.027,28169.0,28168.0,0.560874]
[1680619420986,0.027,28169.0,28168.0,0.560694]
[1680619421168,0.027,28169.0,28168.0,0.75389862]
[1680619421383,0.027,28169.0,28168.0,0.7012554]
[1680619421804,0.005679,28173.0,28168.0,0.75368506]
[1680619422018,0.003,28169.0,28168.0,0.87922787]
[1680619422250,0.005679,28173.0,28168.0,0.58296206]
[1680619422452,0.005679,28172.0,28169.0,0.60263621]
[1680619422678,0.005679,28172.0,28169.0,0.61435833]
[1680619423351,0.49844576,28181.0,28180.0,1.17894907]
[1680619423573,2.00723394,28181.0,28180.0,1.32084588]
[1680619423783,2.0921287,28181.0,28180.0,1.32084588]
[1680619424041,2.0921287,28181.0,28180.0,1.17894907]
[1680619425398,2.24647083,28181.0,28180.0,1.17994907]
[1680619425643,2.21947083,28181.0,28180.0,1.17994907]
[1680619425896,2.24647083,28181.0,28180.0,1.17994907]
[1680619426123,2.16157607,28181.0,28180.0,1.17994907]
[1680619426360,2.99709591,28181.0,28180.0,1.17994907]
[1680619427278,3.17452591,28181.0,28180.0,1.17994907]
[1680619427499,3.21656598,28181.0,28180.0,1.17994907]
[1680619427722,3.17454364,28181.0,28180.0,1.17994907]
[1680619427935,3.38627595,28181.0,28180.0,1.17994907]
[1680619428157,3.42080812,28181.0,28180.0,1.17994907]
[1680619428925,2.99711364,28181.0,28180.0,1.17994907]
[1680619429666,3.44898545,28181.0,28180.0,1.17994907]
[1680619430104,3.02981572,28181.0,28180.0,1.17494907]
[1680619430323,2.75536391,28181.0,28180.0,1.17494907]
[1680619430755,3.18039799,28181.0,28180.0,1.17494907]
[1680619430985,2.75536391,28181.0,28180.0,1.17494907]
[1680619431204,2.59495902,28181.0,28180.0,1.17494907]
[1680619432314,3.01412868,28181.0,28180.0,1.17494907]
[1680619432531,2.99681357,28181.0,28180.0,1.17494907]
[1680619432744,3.03883591,28181.0,28180.0,1.17494907]
[1680619433378,3.07578901,28181.0,28180.0,1.17494907]
[1680619438852,2.8640567,28181.0,28180.0,1.17494907]
[1680619441503,2.8640567,28181.0,28180.0,1.13875663]
[1680619441726,2.8640567,28181.0,28180.0,1.1324514]
[1680619441949,2.99376442,28181.0,28180.0,1.1324514]
[1680619442374,2.97686442,28181.0,28180.0,1.1324514]
[1680619442641,2.97686442,28181.0,28180.0,0.52502053]
[1680619442873,0.23721,28180.0,28168.0,0.4985]
[1680619443098,0.08491964,28174.0,28173.0,6e-05]
[1680619443324,1.55634058,28174.0,28169.0,0.35746015]
[1680619443550,0.1507,28170.0,28169.0,0.01289349]
[1680619443773,0.233539,28170.0,28169.0,0.01289349]
[1680619443985,0.533539,28170.0,28169.0,0.01289349]
[1680619444647,0.533539,28170.0,28169.0,0.41861247]
[1680619445465,0.560539,28170.0,28169.0,0.41861247]
[1680619446406,0.560539,28170.0,28169.0,0.00018]
[1680619447730,0.59545692,28170.0,28169.0,0.00018]
[1680619449679,0.44475692,28170.0,28169.0,0.00018]
[1680619449901,0.36145492,28170.0,28169.0,0.00018]
[1680619450170,0.66145492,28170.0,28169.0,0.00018]
[1680619450493,0.58575492,28170.0,28169.0,0.00018]
[1680619450912,0.55875492,28170.0,28169.0,0.00018]
[1680619451129,0.58575492,28170.0,28169.0,0.00018]
[1680619451339,0.55875492,28170.0,28169.0,0.00018]
[1680619451762,0.58575492,28170.0,28169.0,0.00018]
[1680619453027,0.58575492,28170.0,28169.0,0.39533686]
[1680619453028,0.52045692,28170.0,28169.0,0.39533686]
[1680619453226,0.069032,28170.0,28169.0,0.43023349]
[1680619453441,0.032679,28170.0,28169.0,0.43023349]
[1680619453861,0.005679,28170.0,28169.0,0.43023349]
[1680619454266,0.027679,28170.0,28169.0,0.43023349]
[1680619454682,0.04922,28170.0,28169.0,0.43023349]
[1680619454891,0.005679,28170.0,28169.0,0.43023349]
[1680619455101,0.027679,28170.0,28169.0,0.43023349]
[1680619455526,0.027679,28170.0,28169.0,0.44153063]
[1680619456139,0.070524,28170.0,28169.0,0.44153063]
[1680619456555,0.027679,28170.0,28169.0,0.54564427]
[1680619459231,0.022,28170.0,28169.0,0.50618868]
[1680619459444,0.027679,28170.0,28169.0,0.50809951]
[1680619459639,0.027679,28170.0,28169.0,0.65809951]
[1680619459884,0.027679,28170.0,28169.0,0.50809951]
[1680619460102,0.022,28170.0,28169.0,0.08677714]
[1680619460320,0.027679,28170.0,28169.0,0.54499809]
[1680619460548,0.022,28170.0,28169.0,0.08677714]
[1680619460996,0.022,28170.0,28169.0,0.28677714]
[1680619461218,0.022,28170.0,28169.0,0.08677714]
[1680619461647,0.02083239,28170.0,28169.0,0.08659714]
[1680619462502,0.01965573,28170.0,28169.0,0.08659714]
[1680619462731,0.01965573,28170.0,28169.0,0.69007542]
[1680619462941,0.01965573,28170.0,28169.0,1.06035542]
[1680619463578,0.01848561,28170.0,28169.0,1.06035542]
[1680619463794,0.01452257,28174.0,28169.0,1.06035542]
[1680619464070,0.01452257,28174.0,28172.0,0.0757]
[1680619464971,0.01452257,28174.0,28173.0,0.33824933]
[1680619465192,0.01652257,28174.0,28173.0,0.33824933]
[1680619466038,0.01452257,28174.0,28173.0,0.33824933]
[1680619466256,0.02252257,28174.0,28173.0,0.33924933]
[1680619468187,0.06689757,28174.0,28173.0,0.33924933]
[1680619468416,0.02252257,28174.0,28173.0,0.33924933]
[1680619468636,0.06257857,28174.0,28173.0,0.33924933]
[1680619468849,0.02252257,28174.0,28173.0,0.33924933]
[1680619469523,0.02125771,28174.0,28173.0,0.35189794]
[1680619470659,0.02125771,28174.0,28173.0,0.33924933]
[1680619471327,0.01557871,28174.0,28173.0,0.21341293]
[1680619471545,0.01557871,28174.0,28173.0,0.1519]
[1680619471766,0.008,28174.0,28173.0,0.1519]
[1680619471984,0.008,28174.0,28173.0,0.57175753]
[1680619472200,0.008,28174.0,28173.0,0.1519]
[1680619473091,0.008,28174.0,28173.0,0.16788]
[1680619473531,0.008,28174.0,28173.0,0.1519]
[1680619473986,0.008,28174.0,28173.0,0.3019]
[1680619474227,0.008,28174.0,28173.0,0.318247]
[1680619474442,0.008,28174.0,28173.0,0.49805732]
[1680619474656,0.008,28174.0,28173.0,0.49677532]
[1680619475281,0.008,28174.0,28173.0,0.167025]
[1680619475477,0.008,28174.0,28173.0,0.166845]
[1680619475881,0.008,28174.0,28173.0,0.1519]
[1680619476675,0.008,28174.0,28173.0,0.54237377]
[1680619476904,0.008,28174.0,28173.0,0.54255377]
[1680619477117,1.01779802,28174.0,28173.0,0.55843477]
[1680619477327,1.01779802,28174.0,28173.0,0.54255377]
[1680619479652,1.01779802,28174.0,28173.0,0.76565377]
[1680619479861,1.01779802,28174.0,28173.0,0.74675898]
[1680619480072,1.02347602,28174.0,28173.0,0.37275898]
[1680619480740,1.06714002,28174.0,28173.0,0.37275898]
[1680619480956,1.02347602,28174.0,28173.0,0.37275898]
[1680619481169,1.02356602,28174.0,28173.0,0.37263898]
[1680619481384,1.02368602,28174.0,28173.0,0.37257898]
[1680619481823,1.02347602,28174.0,28173.0,0.37275898]
[1680619482687,1.06540602,28174.0,28173.0,0.37275898]
[1680619483127,1.01779802,28174.0,28173.0,0.37275898]
[1680619484227,1.01800802,28174.0,28173.0,0.37257898]
[1680619484461,1.01779802,28174.0,28173.0,0.37275898]
[1680619485793,1.06182102,28174.0,28173.0,0.37275898]
[1680619486020,1.01779802,28174.0,28173.0,0.37275898]
[1680619486663,1.06126402,28174.0,28173.0,0.37275898]
[1680619487104,1.01779802,28174.0,28173.0,0.37275898]
[1680619488601,1.06136102,28174.0,28173.0,0.37275898]
[1680619489025,1.01779802,28174.0,28173.0,0.37275898]
[1680619490557,1.01779802,28174.0,28173.0,0.43459288]
[1680619490902,1.01779802,28174.0,28173.0,0.4370139]
[1680619491110,1.01779802,28174.0,28173.0,0.86023586]
[1680619491324,1.01779802,28174.0,28173.0,0.87612386]
[1680619491485,1.01779802,28174.0,28173.0,0.86023586]
[1680619491715,1.02347602,28174.0,28173.0,0.79840196]
[1680619492297,1.02347602,28174.0,28173.0,0.81457296]
[1680619492535,1.01779802,28174.0,28173.0,0.42440196]
[1680619493413,1.01779802,28174.0,28173.0,0.00118]
[1680619493632,1.01779802,28174.0,28173.0,0.362787]
[1680619493844,1.01769412,28174.0,28173.0,0.712111]
[1680619494563,1.01769412,28174.0,28173.0,1.06045767]
[1680619494846,1.00979802,28174.0,28173.0,1.04300667]
[1680619495068,1.01079802,28174.0,28173.0,1.05100667]
[1680619495297,1.01079802,28174.0,28173.0,1.15530734]
[1680619495971,1.01079802,28174.0,28173.0,1.05100667]
[1680619498784,1.01079802,28174.0,28173.0,0.718444]
[1680619500100,1.01079802,28174.0,28173.0,1.05335127]
[1680619500321,1.01079802,28174.0,28173.0,0.718444]
[1680619500764,1.01079802,28174.0,28173.0,1.17805726]
[1680619501202,1.01079802,28174.0,28173.0,0.718444]
[1680619501416,1.01079802,28174.0,28173.0,0.79873915]
[1680619501643,1.01079802,28174.0,28173.0,0.718444]
[1680619501830,1.01079802,28174.0,28173.0,1.1670204]
[1680619502266,1.01079802,28174.0,28173.0,0.718444]
[1680619502790,1.01079802,28174.0,28173.0,1.05776226]
[1680619503001,1.01079802,28174.0,28173.0,0.83246698]
[1680619504259,1.01079802,28174.0,28173.0,1.09203391]
[1680619504695,1.01079802,28174.0,28173.0,0.71824]
[1680619504915,1.01079802,28174.0,28173.0,1.11875651]
[1680619506663,1.01079802,28174.0,28173.0,1.1035353]
[1680619507075,1.01079802,28174.0,28173.0,0.71824]
[1680619507269,1.01079802,28174.0,28173.0,1.17167289]
[1680619507910,0.99352947,28174.0,28173.0,1.31000435]
[1680619508351,0.99920747,28174.0,28173.0,1.15609289]
[1680619508567,0.99352947,28174.0,28173.0,1.15609289]
[1680619509083,0.99352947,28174.0,28173.0,0.98581289]
[1680619509728,0.99352947,28174.0,28173.0,1.15609289]
[1680619509947,0.99352947,28174.0,28173.0,1.17210389]
[1680619510619,0.99352947,28174.0,28173.0,1.08129289]
[1680619511707,0.99352947,28174.0,28173.0,1.09770289]
[1680619511938,0.99352947,28174.0,28173.0,1.08129289]
[1680619513416,0.99920747,28174.0,28173.0,1.08129289]
[1680619513603,0.99920747,28174.0,28173.0,0.70729289]
[1680619513877,0.99920747,28174.0,28173.0,0.17846]
[1680619514152,0.99920747,28174.0,28173.0,0.008]
[1680619514153,1.11764547,28174.0,28173.0,0.008]
[1680619514442,1.11785547,28174.0,28173.0,0.008]
[1680619514683,1.11657047,28174.0,28172.0,0.34689138]
[1680619514894,0.0751,28173.0,28172.0,0.34689138]
[1680619515117,0.080779,28173.0,28172.0,0.34689138]
[1680619515574,0.080779,28173.0,28171.0,0.00018]
[1680619515575,0.0751,28173.0,28171.0,0.00018]
[1680619515786,0.0751,28173.0,28171.0,0.44961618]
[1680619516033,0.0771,28173.0,28171.0,0.44961618]
[1680619516244,0.0771,28173.0,28171.0,0.65333116]
[1680619516458,0.0771,28173.0,28172.0,0.016322]
[1680619516715,0.0771,28173.0,28171.0,0.65333116]
[1680619516939,0.0771,28173.0,28172.0,0.016414]
[1680619517161,0.0771,28173.0,28172.0,0.47859521]
[1680619517382,0.080989,28173.0,28172.0,0.47859521]
[1680619517506,0.080989,28173.0,28172.0,0.46218121]
[1680619517702,0.081989,28173.0,28172.0,0.47833621]
[1680619518129,0.080989,28173.0,28172.0,0.46218121]
[1680619518334,0.082989,28173.0,28172.0,0.46218121]
[1680619519404,0.082989,28173.0,28170.0,0.54452]
[1680619519606,0.082779,28173.0,28170.0,0.54434]
[1680619519815,0.082779,28173.0,28170.0,0.17034]
[1680619520235,0.080779,28173.0,28170.0,0.17034]
[1680619520443,0.0749,28172.0,28170.0,0.17734]
[1680619520643,0.005679,28171.0,28170.0,0.17734]
[1680619521065,0.005679,28171.0,28170.0,0.186236]
[1680619521275,0.005679,28171.0,28170.0,0.186322]
[1680619521686,0.005679,28171.0,28170.0,0.60398972]
[1680619521897,0.080579,28172.0,28171.0,0.34315659]